bitfinex/quotes_SOLUSD_20240918
["timestamp","ask_amount","ask_price","bid_price","bid_amount"]
[1726634456792,23.776884,131.38,131.36,0.2550861]
[1726634463525,20.0,131.4,131.36,0.2550861]
[1726634464201,7.6105,131.4,131.36,0.2550861]
[1726634464407,27.6099,131.41,131.36,0.2550861]
[1726634464607,23.776884,131.4,131.36,0.2550861]
[1726634471925,23.776884,131.38,131.36,0.2550861]
[1726634472436,31.388384,131.38,131.36,0.2550861]
[1726634472733,1.01330708,131.37,131.36,0.2550861]
[1726634472916,31.388384,131.38,131.36,0.2550861]
[1726634473520,23.776884,131.38,131.36,0.2550861]
[1726634477247,31.388484,131.38,131.36,0.2550861]
[1726634477416,32.40179108,131.38,131.36,0.2550861]
[1726634478923,31.388484,131.38,131.36,0.2550861]
[1726634480222,31.388884,131.37,131.36,0.2550861]
[1726634484137,51.388884,131.37,131.36,0.2550861]
[1726634489912,52.52768108,131.37,131.36,0.2550861]
[1726634490228,52.76712736,131.37,131.36,0.2550861]
[1726634491037,72.32774845,131.37,131.32,0.4937845]
[1726634491237,51.516774,131.33,131.32,0.4937845]
[1726634494733,52.53008108,131.33,131.32,0.4937845]
[1726634498022,52.65557108,131.33,131.32,0.4937845]
[1726634503552,51.642264,131.33,131.32,0.4937845]
[1726634503952,51.516774,131.33,131.32,0.4937845]
[1726634506338,52.65557108,131.33,131.32,0.4937845]
[1726634508757,51.642264,131.33,131.32,0.4937845]
[1726634509650,52.65557108,131.33,131.32,0.4937845]
[1726634510438,51.642264,131.33,131.32,0.4937845]
[1726634512069,52.65557108,131.33,131.32,0.4937845]
[1726634513038,51.642264,131.33,131.32,0.4937845]
[1726634513855,52.65557108,131.33,131.32,0.4937845]
[1726634517461,51.642264,131.33,131.32,0.4937845]
[1726634518360,54.73945481,131.33,131.32,0.4937845]
[1726634531454,27.73989,131.33,131.32,0.4937845]
[1726634532650,27.86538,131.33,131.32,0.4937845]
[1726634532954,51.642264,131.33,131.32,0.4937845]
[1726634536053,52.65557108,131.33,131.32,0.4937845]
[1726634536267,52.76952736,131.33,131.32,0.4937845]
[1726634536576,51.75622028,131.33,131.32,0.4937845]
[1726634536752,52.76952736,131.33,131.32,0.4937845]
[1726634538375,51.75622028,131.33,131.32,0.4937845]
[1726634542253,51.642264,131.33,131.32,0.4937845]
[1726634545769,52.65557108,131.33,131.32,0.4937845]
[1726634546165,51.642264,131.33,131.32,0.4937845]
[1726634547388,7.6144,131.33,131.32,0.4937845]
[1726634548883,27.6144,131.33,131.32,0.4937845]
[1726634549093,51.391284,131.33,131.32,0.4937845]
[1726634549381,7.6144,131.33,131.32,0.4937845]
[1726634550472,51.391284,131.33,131.32,0.4937845]
[1726634552986,20.0,131.33,131.32,0.4937845]
[1726634554081,43.776884,131.33,131.32,0.4937845]
[1726634558065,23.776884,131.33,131.32,0.4937845]
[1726634558264,23.776884,131.35,131.32,0.4937845]
[1726634558580,7.6116,131.38,131.33,16.5067]
[1726634558970,7.6116,131.38,131.33,28.82230861]
[1726634560793,23.776884,131.37,131.33,16.5067]
[1726634580604,23.776884,131.37,131.33,28.82230861]
[1726634585017,23.776884,131.37,131.33,16.5067]
[1726634587410,31.389084,131.37,131.33,16.5067]
[1726634587802,31.389084,131.37,131.33,28.82230861]
[1726634593714,31.389084,131.37,131.33,16.5067]
[1726634606729,1.01330708,131.36,131.33,16.5067]
[1726634607708,1.01330708,131.35,131.32,0.4937845]
[1726634608833,1.01330708,131.36,131.32,0.4937845]
[1726634609127,1.01330708,131.35,131.32,0.4937845]
[1726634610135,1.01330708,131.36,131.32,0.4937845]
[1726634611833,23.776884,131.37,131.33,12.31560861]
[1726634618138,23.776884,131.37,131.34,12.31560861]
[1726634621438,23.776884,131.37,131.33,12.31560861]
[1726634621943,31.388984,131.37,131.32,12.80939311]
[1726634622315,31.388984,131.37,131.33,12.31560861]
[1726634625631,23.776884,131.37,131.34,12.31560861]
[1726634626923,23.776884,131.37,131.33,12.31560861]
[1726634631332,7.6116,131.38,131.33,12.31560861]
[1726634634758,63.81819108,131.39,131.32,0.4937845]
[1726634635120,7.6128,131.36,131.32,0.4937845]
[1726634635358,7.6122,131.37,131.32,0.4937845]
[1726634636233,7.6122,131.37,131.32,12.80939311]
[1726634639336,7.6122,131.37,131.32,0.4937845]
[1726634639536,7.6122,131.37,131.32,12.80939311]
[1726634641849,7.6122,131.37,131.32,0.4937845]
[1726634642033,7.6122,131.37,131.32,12.80939311]
[1726634646868,7.6122,131.37,131.33,12.31560861]
[1726634648761,43.776884,131.39,131.33,12.31560861]
[1726634648978,16.138,131.4,131.36,12.31560861]
[1726634650340,23.7484,131.4,131.36,12.31560861]
[1726634650761,7.6099,131.41,131.36,12.31560861]
[1726634650953,20.0,131.4,131.36,12.31560861]
[1726634651358,20.0,131.4,131.32,10.03040295]
[1726634651359,27.6104,131.4,131.35,12.31560861]
[1726634660360,27.6104,131.4,131.34,12.31560861]
[1726634660766,31.387984,131.39,131.32,0.4937845]
[1726634660968,31.387984,131.39,131.33,12.31560861]
[1726634663572,31.387984,131.39,131.34,12.31560861]
[1726634666043,47.170984,131.39,131.34,12.31560861]
[1726634667468,47.170984,131.39,131.33,12.31560861]
[1726634671883,47.170984,131.39,131.34,12.31560861]
[1726634677592,47.170984,131.39,131.34,12.31560861]
[1726634679991,39.559884,131.39,131.32,0.4937845]
[1726634680163,23.776884,131.37,131.32,12.80939311]
[1726634680355,23.776884,131.37,131.33,12.31560861]
[1726634681161,23.776884,131.37,131.32,0.4937845]
[1726634681383,16.5202,131.36,131.32,0.4937845]
[1726634681681,16.5202,131.36,131.33,12.31560861]
[1726634682167,16.5202,131.36,131.32,0.4937845]
[1726634682363,16.5202,131.36,131.32,12.80939311]
[1726634682783,16.5202,131.36,131.32,0.4937845]
[1726634683083,16.5202,131.36,131.32,12.80939311]
[1726634684471,16.5202,131.36,131.32,0.4937845]
[1726634684686,1.01330708,131.35,131.32,0.4937845]
[1726634684993,16.5202,131.36,131.32,0.4937845]
[1726634688299,24.1329,131.36,131.32,0.4937845]
[1726634690099,16.5202,131.36,131.32,0.4937845]
[1726634690274,16.5202,131.36,131.32,12.80939311]
[1726634692584,16.5202,131.36,131.32,0.4937845]
[1726634694380,16.5202,131.36,131.33,12.31560861]
[1726634695189,6.227,131.38,131.34,12.31560861]
[1726634696507,6.227,131.38,131.35,12.31560861]
[1726634698715,6.227,131.38,131.34,12.31560861]
[1726634700985,16.4226,131.39,131.32,0.4937845]
[1726634700986,16.4226,131.39,131.36,12.31560861]
[1726634701388,6.3196,131.41,131.38,12.31560861]
[1726634701618,6.3196,131.41,131.37,12.31560861]
[1726634701903,6.3196,131.41,131.33,0.25098]
[1726634701904,1.01330708,131.4,131.33,0.25098]
[1726634702081,16.46050708,131.39,131.32,0.4937845]
[1726634702282,24.07150708,131.39,131.32,12.80939311]
[1726634703106,23.0582,131.39,131.32,12.80939311]
[1726634703883,1.01330708,131.38,131.32,12.80939311]
[1726634705123,8.62490708,131.38,131.32,0.4937845]
[1726634705308,6.1498,131.37,131.32,0.4937845]
[1726634705483,13.762,131.37,131.32,0.4937845]
[1726634705680,1.01330708,131.36,131.32,0.4937845]
[1726634706188,13.762,131.37,131.32,0.4937845]
[1726634712322,16.5453,131.35,131.32,0.4937845]
[1726634712615,17.55860708,131.35,131.32,0.4937845]
[1726634713409,16.5453,131.35,131.32,0.4937845]
[1726634715514,6.1498,131.37,131.32,12.80939311]
[1726634716709,6.1498,131.37,131.33,12.31560861]
[1726634717016,16.1829,131.38,131.35,12.31560861]
[1726634720202,16.1829,131.38,131.34,12.31560861]
[1726634721416,16.1829,131.38,131.33,12.31560861]
[1726634721624,16.1829,131.38,131.33,0.12549]
[1726634723329,16.1829,131.38,131.33,12.44109861]
[1726634723699,16.1829,131.38,131.34,12.31560861]
[1726634727797,16.1829,131.38,131.32,0.4937845]
[1726634727999,16.1829,131.38,131.33,12.31560861]
[1726634728199,16.1829,131.38,131.32,12.80939311]
[1726634730406,16.1829,131.38,131.34,12.31560861]
[1726634730726,16.1829,131.38,131.35,13.83809247]
[1726634730925,16.1829,131.38,131.35,12.31560861]
[1726634736325,16.1829,131.38,131.33,0.12549]
[1726634736526,16.1829,131.38,131.34,12.31560861]
[1726634736824,16.1829,131.38,131.33,0.12549]
[1726634737026,16.1829,131.38,131.33,12.44109861]
[1726634738230,16.1829,131.38,131.34,12.31560861]
[1726634742415,16.1829,131.38,131.35,12.31560861]
[1726634742617,6.2348,131.4,131.37,12.31560861]
[1726634742828,6.2348,131.4,131.38,1.52212801]
[1726634743009,6.2348,131.4,131.38,13.83773662]
[1726634743210,6.2348,131.4,131.38,12.31560861]
[1726634743624,15.7572,131.41,131.38,12.31560861]
[1726634746216,6.1847,131.43,131.39,12.31560861]
[1726634747018,6.1847,131.43,131.4,12.31560861]
[1726634747942,15.107,131.44,131.41,1.52188159]
[1726634748515,15.107,131.44,131.4,12.31560861]
[1726634749114,15.107,131.44,131.41,12.31560861]
[1726634749321,6.3185861,131.46,131.42,12.31560861]
[1726634750213,6.3185861,131.46,131.43,13.83718542]
[1726634750409,6.3185861,131.46,131.44,12.31560861]
[1726634750410,0.2550861,131.46,131.44,12.31560861]
[1726634751619,0.2550861,131.46,131.43,12.31560861]
[1726634754739,0.2550861,131.46,131.42,12.31560861]
[1726634761160,0.2550861,131.46,131.44,12.31560861]
[1726634761752,0.2550861,131.46,131.45,1.52135234]
[1726634762129,0.2550861,131.46,131.45,1.52128609]
[1726634762836,0.2550861,131.46,131.45,13.8368947]
[1726634763344,0.2550861,131.46,131.45,12.31560861]
[1726634768937,0.2550861,131.46,131.45,12.44109861]
[1726634770255,0.2550861,131.46,131.45,32.56658861]
[1726634770636,0.2550861,131.46,131.45,34.0874463]
[1726634770840,0.2550861,131.46,131.45,32.56658861]
[1726634771650,0.2550861,131.46,131.45,56.34347261]
[1726634772343,0.2550861,131.46,131.45,32.56658861]
[1726634774059,0.2550861,131.46,131.45,56.34347261]
[1726634775957,0.2550861,131.46,131.45,32.56658861]
[1726634776155,0.2550861,131.46,131.45,20.0]
[1726634776541,0.2550861,131.46,131.43,12.31560861]
[1726634776742,0.2550861,131.46,131.44,12.31560861]
[1726634778861,0.2550861,131.46,131.43,12.44109861]
[1726634780047,0.2550861,131.46,131.44,12.31560861]
[1726634780241,0.2550861,131.46,131.45,1.52125064]
[1726634781148,0.2550861,131.46,131.43,0.12549]
[1726634781352,0.2550861,131.46,131.44,12.31560861]
[1726634783456,0.2550861,131.46,131.43,12.44109861]
[1726634783638,0.2550861,131.46,131.43,0.12549]
[1726634784058,0.2550861,131.46,131.43,20.12549]
[1726634784450,0.2550861,131.46,131.43,32.44109861]
[1726634787162,0.2550861,131.46,131.45,12.31560861]
[1726634788444,0.2550861,131.46,131.45,32.56658861]
[1726634794553,0.2550861,131.46,131.45,0.12549]
[1726634795671,0.2550861,131.46,131.43,20.12549]
[1726634795849,0.2550861,131.46,131.43,32.44109861]
[1726634796758,0.2550861,131.46,131.45,12.31560861]
[1726634799757,0.2550861,131.46,131.45,12.56658861]
[1726634810867,0.2550861,131.46,131.45,12.44109861]
[1726634817594,0.2550861,131.46,131.45,12.56658861]
[1726634830906,0.2550861,131.46,131.45,0.12549]
[1726634831706,0.2550861,131.46,131.44,0.12549]
[1726634831885,0.2550861,131.46,131.44,20.12549]
[1726634832620,0.2550861,131.46,131.44,12.44109861]
[1726634834486,0.2550861,131.46,131.41,20.0]
[1726634834689,6.3151861,131.46,131.4,7.89901291]
[1726634834992,6.3151861,131.46,131.41,12.31560861]
[1726634836285,6.3151861,131.46,131.42,12.44109861]
[1726634837018,6.3151861,131.46,131.43,12.31560861]
[1726634838708,6.3151861,131.46,131.42,12.44109861]
[1726634839507,6.3151861,131.46,131.41,12.31560861]
[1726634839691,15.5501,131.45,131.39,0.12549]
[1726634839897,15.5501,131.45,131.41,12.31560861]
[1726634846202,15.5501,131.45,131.39,32.44109861]
[1726634846692,15.5501,131.45,131.39,32.31560861]
[1726634847087,15.5501,131.45,131.39,12.31560861]
[1726634849907,23.1576,131.45,131.38,0.25098]
[1726634850114,23.1576,131.45,131.38,12.56658861]
[1726634850295,6.1294,131.44,131.38,12.44109861]
[1726634850614,6.1294,131.44,131.38,12.31560861]
[1726634851995,15.0789,131.43,131.38,12.31560861]
[1726634853122,15.0789,131.43,131.37,12.44109861]
[1726634854119,15.0789,131.43,131.37,0.12549]
[1726634854496,15.0789,131.43,131.37,20.12549]
[1726634855125,6.337,131.42,131.37,0.12549]
[1726634855297,6.337,131.42,131.33,20.0]
[1726634855500,16.3738,131.4,131.34,12.31560861]
[1726634856719,16.3738,131.4,131.35,0.25098]
[1726634858402,16.3738,131.4,131.36,0.12549]
[1726634859619,16.3738,131.4,131.35,12.31560861]
[1726634862422,16.3738,131.4,131.33,20.25098]
[1726634862623,16.3738,131.4,131.35,12.31560861]
[1726634869321,16.3738,131.4,131.33,20.25098]
[1726634869504,16.3738,131.4,131.35,0.12549]
[1726634870834,16.3738,131.4,131.34,12.31560861]
[1726634873619,16.3738,131.4,131.35,12.31560861]
[1726634875328,16.3738,131.4,131.34,0.12549]
[1726634875619,16.3738,131.4,131.34,12.44109861]
[1726634880137,23.9843,131.4,131.34,0.12549]
[1726634880312,6.4994,131.39,131.33,0.12549]
[1726634880512,14.1104,131.39,131.32,12.80939311]
[1726634882420,6.4994,131.39,131.34,12.31560861]
[1726634882626,6.4994,131.39,131.35,13.83799338]
[1726634883421,6.4994,131.39,131.35,12.31560861]
[1726634885542,6.4994,131.39,131.33,0.25098]
[1726634885840,6.4994,131.39,131.33,12.56658861]
[1726634888521,6.4994,131.39,131.34,12.31560861]
[1726634890324,1.01330708,131.38,131.33,20.0]
[1726634890643,15.3995,131.37,131.33,20.0]
[1726634892646,7.67970708,131.36,131.32,0.4937845]
[1726634893922,6.6664,131.36,131.32,0.4937845]
[1726634900743,15.2871,131.35,131.32,0.4937845]
[1726634907543,1.01330708,131.34,131.32,0.4937845]
[1726634908955,23.776884,131.34,131.32,0.4937845]
[1726634912365,31.390684,131.34,131.32,0.4937845]
[1726634913363,23.776884,131.34,131.32,0.4937845]
[1726634913668,1.01330708,131.33,131.32,0.4937845]
[1726634914169,54.08959108,131.33,131.32,0.4937845]
[1726634914345,53.076284,131.33,131.32,0.4937845]
[1726634914741,21.685,131.33,131.32,0.4937845]
[1726634915287,22.69830708,131.33,131.32,0.4937845]
[1726634916065,46.47519108,131.33,131.32,0.4937845]
[1726634916260,74.08959108,131.33,131.32,0.4937845]
[1726634917337,74.21508108,131.33,131.32,0.4937845]
[1726634918344,74.34057108,131.33,131.32,0.4937845]
[1726634918744,73.327264,131.33,131.32,0.4937845]
[1726634921777,44.027864,131.32,131.28,0.2550861]
[1726634922066,23.776884,131.3,131.28,0.2550861]
[1726634924544,23.776884,131.31,131.28,0.2550861]
[1726634930852,20.0,131.32,131.28,12.57069471]
[1726634931264,20.0,131.32,131.28,0.2550861]
[1726634931766,21.01330708,131.32,131.28,0.2550861]
[1726634932074,20.0,131.32,131.28,0.2550861]
[1726634932675,27.615,131.32,131.28,0.2550861]
[1726634934564,28.62830708,131.32,131.28,0.2550861]
[1726634935368,23.776884,131.31,131.28,0.2550861]
[1726634935547,1.01330708,131.3,131.28,0.2550861]
[1726634936976,24.79019108,131.29,131.28,0.2550861]
[1726634937357,32.40689108,131.29,131.28,0.2550861]
[1726634938954,31.393584,131.29,131.28,0.2550861]
[1726634939375,23.776884,131.29,131.28,0.2550861]
[1726634940169,20.0,131.3,131.28,0.2550861]
[1726634941256,24.79019108,131.29,131.28,0.2550861]
[1726634944103,23.776884,131.29,131.28,0.2550861]
[1726634944863,23.902374,131.31,131.28,0.2550861]
[1726634945070,20.0,131.3,131.28,0.2550861]
[1726634945987,24.79019108,131.29,131.28,0.2550861]
[1726634948591,52.53238108,131.29,131.28,0.2550861]
[1726634949383,51.519074,131.29,131.28,0.2550861]
[1726634953189,51.519074,131.29,131.28,0.2550861]
[1726634955569,51.644564,131.29,131.28,0.2550861]
[1726634955877,67.643064,131.29,131.28,0.2550861]
[1726634956270,74.051064,131.29,131.28,0.2550861]
[1726634958968,75.06437108,131.29,131.28,0.2550861]
[1726634959586,74.051064,131.29,131.28,0.2550861]
[1726634963095,75.06437108,131.29,131.28,0.2550861]
[1726634963273,74.051064,131.29,131.28,0.2550861]
[1726634964004,75.06437108,131.29,131.28,0.2550861]
[1726634964398,7.6185,131.26,131.24,0.4937845]
[1726634964579,23.776884,131.25,131.24,0.4937845]
[1726634965196,31.395884,131.25,131.24,0.4937845]
[1726634965369,51.521374,131.25,131.24,0.4937845]
[1726634965776,51.646864,131.25,131.24,0.4937845]
[1726634968395,67.200664,131.25,131.24,0.4937845]
[1726634968894,43.776884,131.22,131.2,0.2550861]
[1726634969105,52.41099108,131.22,131.2,0.2550861]
[1726634972011,51.649164,131.21,131.2,0.2550861]
[1726634972214,52.66247108,131.21,131.2,0.2550861]
[1726634972709,44.027864,131.21,131.2,0.2550861]
[1726634973288,51.398184,131.21,131.2,0.2550861]
[1726634973504,43.776884,131.21,131.2,0.2550861]
[1726634974018,43.902374,131.21,131.2,0.2550861]
[1726634974312,44.91568108,131.21,131.2,0.2550861]
[1726634974986,43.902374,131.21,131.2,0.2550861]
[1726634976506,51.523674,131.21,131.2,0.2550861]
[1726634977091,51.649164,131.21,131.2,0.2550861]
[1726634980714,20.0,131.21,131.2,0.2550861]
[1726634980888,6.1143,131.28,131.2,0.2550861]
[1726634981095,7.6186,131.26,131.2,0.2550861]
[1726634981494,8.63190708,131.26,131.2,0.2550861]
[1726634981915,7.6186,131.26,131.2,0.2550861]
[1726634982411,51.396084,131.25,131.2,0.2550861]
[1726634982617,53.10112514,131.25,131.2,0.2550861]
[1726634984617,23.776884,131.23,131.2,0.2550861]
[1726634985310,32.41039108,131.23,131.2,0.2550861]
[1726634986018,31.397084,131.23,131.2,0.2550861]
[1726634986222,31.522074,131.24,131.2,0.2550861]
[1726634988901,23.776884,131.24,131.2,0.2550861]
[1726635000402,23.776884,131.24,131.2,16.3842861]
[1726635001722,24.79019108,131.24,131.2,16.3842861]
[1726635001921,1.01330708,131.23,131.2,0.2550861]
[1726635002131,23.776884,131.22,131.2,0.2550861]
[1726635002422,1.01330708,131.21,131.2,0.2550861]
[1726635003528,24.79019108,131.22,131.2,0.2550861]
[1726635004034,23.776884,131.22,131.2,0.2550861]
[1726635004837,24.79019108,131.22,131.2,0.2550861]
[1726635006105,32.41109108,131.22,131.2,0.2550861]
[1726635006418,51.523674,131.21,131.2,0.2550861]
[1726635008414,51.649164,131.21,131.2,0.2550861]
[1726635011635,52.66247108,131.21,131.2,0.2550861]
[1726635013331,7.6232,131.18,131.16,0.4937845]
[1726635013523,52.53928108,131.17,131.16,0.4937845]
[1726635014411,52.66477108,131.17,131.16,0.4937845]
[1726635014723,51.651464,131.17,131.16,0.4937845]
[1726635015357,52.66477108,131.17,131.16,0.4937845]
[1726635016520,43.902374,131.17,131.16,0.4937845]
[1726635018937,52.66477108,131.17,131.16,0.4937845]
[1726635020133,43.902374,131.17,131.16,0.4937845]
[1726635020937,20.0,131.17,131.16,0.4937845]
[1726635022557,43.902374,131.17,131.16,0.4937845]
[1726635022941,52.66477108,131.17,131.16,0.4937845]
[1726635025056,51.651464,131.17,131.16,0.4937845]
[1726635028756,44.027864,131.17,131.16,0.4937845]
[1726635030054,51.651464,131.17,131.16,0.4937845]
[1726635031944,52.66477108,131.17,131.16,0.4937845]
[1726635047776,51.651464,131.17,131.16,0.4937845]
[1726635048574,52.66477108,131.17,131.16,0.4937845]
[1726635049982,44.027864,131.16,131.12,0.2550861]
[1726635050279,20.0,131.13,131.12,0.2550861]
[1726635050495,45.04117108,131.13,131.12,0.2550861]
[1726635050850,52.66717108,131.13,131.12,0.2550861]
[1726635051360,43.902374,131.09,131.08,0.4937845]
[1726635051683,43.776884,131.09,131.08,0.4937845]
[1726635052348,6.5788,131.15,131.08,8.1226845]
[1726635052349,7.6254,131.14,131.08,8.1226845]
[1726635052552,7.6254,131.14,131.09,7.6283]
[1726635052553,23.902374,131.12,131.09,7.6283]
[1726635052755,7.6247,131.16,131.09,12.31560861]
[1726635052985,7.6249,131.15,131.1,7.6277]
[1726635054081,23.776884,131.14,131.1,7.6277]
[1726635054375,20.0,131.13,131.1,7.6277]
[1726635054682,23.776884,131.12,131.09,7.6282]
[1726635054972,43.776884,131.12,131.11,7.6271]
[1726635055411,20.0,131.13,131.11,7.6271]
[1726635055879,23.902374,131.15,131.12,7.6265]
[1726635056069,0.25098,131.16,131.13,7.6255]
[1726635056376,7.6231,131.18,131.13,7.6255]
[1726635057155,20.0,131.16,131.12,7.6264]
[1726635057678,20.0,131.14,131.12,7.6264]
[1726635063696,20.0,131.14,131.08,28.91829311]
[1726635063896,23.776884,131.13,131.08,28.91829311]
[1726635064074,23.776884,131.13,131.08,16.6026845]
[1726635064892,23.776884,131.13,131.11,7.6271]
[1726635065092,1.01330708,131.12,131.1,7.6277]
[1726635065580,1.01330708,131.12,131.09,7.6281]
[1726635066897,23.776884,131.13,131.09,7.6281]
[1726635068193,31.402984,131.13,131.09,7.6281]
[1726635068388,20.25098,131.1,131.08,0.4937845]
[1726635068606,45.04117108,131.09,131.08,0.4937845]
[1726635068790,52.66947108,131.09,131.08,0.4937845]
[1726635069099,51.656164,131.09,131.08,0.4937845]
[1726635069285,24.027864,131.09,131.08,0.4937845]
[1726635069490,51.656164,131.09,131.08,0.4937845]
[1726635070780,44.027864,131.09,131.08,0.4937845]
[1726635070979,51.656164,131.09,131.08,0.4937845]
[1726635071379,43.902374,131.09,131.08,0.4937845]
[1726635073902,44.027864,131.09,131.08,0.4937845]
[1726635074203,51.656164,131.09,131.08,0.4937845]
[1726635078701,44.027864,131.09,131.08,0.4937845]
[1726635079801,43.902374,131.09,131.08,0.4937845]
[1726635081001,52.54398108,131.09,131.08,0.4937845]
[1726635081184,52.66947108,131.09,131.08,0.4937845]
[1726635089401,51.656164,131.09,131.08,0.4937845]
[1726635089722,44.027864,131.09,131.08,0.4937845]
[1726635090214,44.027864,131.05,131.0,0.4937845]
[1726635090425,43.776884,131.01,131.0,0.4937845]
[1726635091318,51.409884,131.01,131.0,0.4937845]
[1726635091814,43.776884,131.01,131.0,0.4937845]
[1726635092018,44.91568108,131.01,131.0,0.4937845]
[1726635092522,51.660864,131.01,131.0,0.4937845]
[1726635097102,20.12549,130.98,130.97,0.45031104]
[1726635097299,44.91568108,130.98,130.97,0.45031104]
[1726635098219,43.776884,130.98,130.97,0.45031104]
[1726635100207,7.6331,131.01,130.97,0.45031104]
[1726635100522,20.0,130.99,130.97,0.45031104]
[1726635106829,43.776884,130.98,130.97,0.45031104]
[1726635109236,52.42489108,130.98,130.97,0.45031104]
[1726635110827,52.55038108,130.98,130.97,0.45031104]
[1726635111527,51.537074,130.98,130.97,0.45031104]
[1726635121707,43.776884,130.98,130.97,0.45031104]
[1726635122732,20.0,130.98,130.97,0.45031104]
[1726635124426,43.776884,130.98,130.97,0.45031104]
[1726635124941,52.55038108,130.98,130.97,0.45031104]
[1726635125110,51.537074,130.98,130.97,0.45031104]
[1726635126435,51.411584,130.98,130.97,0.45031104]
[1726635127627,43.776884,130.98,130.97,0.45031104]
[1726635130046,51.411584,130.98,130.97,0.45031104]
[1726635132125,51.537074,130.98,130.97,0.45031104]
[1726635137958,51.662564,130.98,130.97,0.45031104]
[1726635138122,51.414384,130.94,130.92,0.4937845]
[1726635138456,1.01330708,130.93,130.92,0.4937845]
[1726635138753,43.776884,130.93,130.92,0.4937845]
[1726635138959,52.42779108,130.93,130.92,0.4937845]
[1726635139248,52.55328108,130.93,130.92,0.4937845]
[1726635139450,52.67877108,130.93,130.92,0.4937845]
[1726635139628,51.416284,130.9,130.89,0.2550861]
[1726635139950,43.776884,130.9,130.89,0.2550861]
[1726635140137,44.79019108,130.9,130.89,0.2550861]
[1726635140528,43.776884,130.9,130.89,0.2550861]
[1726635141352,20.0,130.9,130.89,0.2550861]
[1726635144030,43.776884,130.9,130.89,0.2550861]
[1726635148250,20.0,130.9,130.89,0.2550861]
[1726635148453,15.8913,130.95,130.91,7.6385]
[1726635148627,15.8913,130.95,130.89,12.8233424]
[1726635148829,6.1494,130.96,130.89,12.8233424]
[1726635149130,7.636,130.96,130.89,12.8233424]
[1726635149436,7.6353,130.97,130.92,7.6377]
[1726635149644,7.6348,130.98,130.93,7.6374]
[1726635149951,29.8716641,130.99,130.93,7.6374]
[1726635150540,20.0,130.98,130.93,7.6374]
[1726635150943,31.537774,130.97,130.92,7.6381]
[1726635151262,23.776884,130.95,130.92,7.6381]
[1726635151552,20.0,130.94,130.9,14.1462]
[1726635151758,20.0,130.94,130.9,19.0755563]
[1726635152162,20.0,130.94,130.92,7.6379]
[1726635154139,20.0,130.94,130.93,7.6376]
[1726635154343,20.0,130.96,130.92,7.6381]
[1726635154653,20.0,130.96,130.93,7.6374]
[1726635154961,7.6359,130.96,130.91,7.6383]
[1726635155159,43.776884,130.95,130.92,7.6381]
[1726635155353,20.0,130.95,130.93,7.6375]
[1726635156062,51.412184,130.97,130.93,7.6375]
[1726635162062,43.776884,130.97,130.93,7.6375]
[1726635163462,51.412384,130.97,130.93,7.6375]
[1726635164946,7.6359,130.96,130.92,7.6382]
[1726635165449,20.0,130.95,130.92,7.6382]
[1726635165850,21.01330708,130.95,130.92,7.6382]
[1726635166563,8.2596641,130.99,130.93,1.52759914]
[1726635166750,20.0,131.0,130.96,7.6354]
[1726635167155,7.6337,131.0,130.96,7.6354]
[1726635167353,20.0,130.99,130.96,7.6354]
[1726635168268,23.776884,130.99,130.96,7.6354]
[1726635169561,20.0,130.98,130.96,7.6354]
[1726635174444,20.0,130.98,130.95,7.6364]
[1726635180149,7.6332,131.01,130.93,27.9559563]
[1726635180354,23.776884,131.0,130.93,27.9559563]
[1726635180555,20.0,130.99,130.96,7.6354]
[1726635181874,20.0,130.99,130.93,27.9559563]
[1726635182166,20.0,130.99,130.94,14.09534731]
[1726635182372,20.0,130.99,130.93,27.9559563]
[1726635182547,20.0,130.99,130.93,15.3877]
[1726635183264,20.0,130.99,130.95,7.6361]
[1726635183644,20.0,130.99,130.96,7.6358]
[1726635184772,20.0,130.99,130.97,7.6353]
[1726635184955,20.0,130.99,130.96,7.6358]
[1726635185787,20.0,130.99,130.97,7.635]
[1726635186081,20.0,130.99,130.96,7.6357]
[1726635186868,23.776884,130.95,130.91,7.6387]
[1726635187172,23.776884,130.95,130.88,12.5682563]
[1726635188268,23.776884,130.95,130.92,7.6381]
[1726635188975,20.0,130.96,130.93,7.637]
[1726635189274,20.0,130.96,130.92,7.6381]
[1726635189649,23.776884,130.95,130.92,7.6381]
[1726635190871,20.0,130.96,130.93,7.6376]